[Event "AUT-ch U16-Open 2025"]
[Site "Fuerstenfeld"]
[Date "2025.04.15"]
[Round "4.1"]
[White "Benedikt, Noah"]
[Black "Stickler, Florentin"]
[Result "1-0"]
[Annotator "ChessBase"]
[ECO "C93"]
[WhiteElo "1976"]
[BlackElo "2189"]
[PlyCount "91"]
[EventDate "2025.04.12"]
[EventType "swiss"]
[EventCountry "AUT"]
[SourceTitle "playchess.com"]
[Source "ChessBase"]
[SourceQuality "1"]
[TimeControl "5400+30"]

1. e4 {[%emt 0:00:44]} e5 {[%emt 0:00:03]} 2. Nf3 {[%emt 0:00:04]} Nc6 {[%emt 0:00:02]} 3. Bb5 {[%emt 0:00:09]} a6 {[%emt 0:00:05]} 4. Ba4 {[%emt 0:00:04]} Nf6 {[%emt 0:00:02]} 5. O-O {[%emt 0:00:09]} Be7 {[%emt 0:00:02]} 6. Re1 {[%emt 0:00:07]} b5 {[%emt 0:00:03]} 7. Bb3 {[%emt 0:00:06]} d6 {[%emt 0:00:02]} 8. c3 {[%emt 0:00:10]} O-O {[%emt 0:00:03]} 9. h3 {[%emt 0:00:05]} Bb7 {[%emt 0:00:03]} 10. d4 {[%emt 0:00:05]} Re8 {[%emt 0:00:03]} 11. Ng5 {[%emt 0:00:06]} Rf8 {[%emt 0:00:43]} 12. Nf3 {[%emt 0:00:46]} h6 {[%emt 0:00:37]} 13. Nbd2 {[%emt 0:00:09]} Re8 {[%emt 0:00:30]} 14. Nf1 {[%emt 0:00:06]} Bf8 {[%emt 0:01:21]} 15. Ng3 {[%emt 0:00:15]} exd4 {[%emt 0:10:45]} 16. cxd4 {[%emt 0:03:11]} d5 {[%emt 0:01:23]} 17. e5 {[%emt 0:04:02]} Ne4 {[%emt 0:00:06]} 18. Bc2 {[%emt 0:33:07]} Nxg3 {[%emt 0:02:51]} 19. fxg3 {[%emt 0:00:04]} Nb4 {[%emt 0:03:10]} 20. Bb1 {[%emt 0:01:09]} c5 {[%emt 0:01:30]} 21. a3 {[%emt 0:00:06]} Nc6 {[%emt 0:00:07]} 22. Qd3 {[%emt 0:00:03]} g6 {[%emt 0:00:38]} 23. e6 {[%emt 0:00:41]} f5 {[%emt 0:01:33]} 24. g4 {[%emt 0:07:31]} Qf6 {[%emt 0:01:43]} 25. gxf5 {[%emt 0:00:49]} Nxd4 {[%emt 0:00:37]} 26. Nxd4 {[%emt 0:00:45]} cxd4 {[%emt 0:00:11]} 27. Qg3 {[%emt 0:01:50]} Bg7 {[%emt 0:13:50]} 28. Qxg6 {[%emt 0:04:57]} Qxg6 {[%emt 0:00:32]} 29. fxg6 {[%emt 0:00:05]} Rac8 {[%emt 0:07:13]} 30. Bf4 {[%emt 0:08:05]} d3 {[%emt 0:02:44]} 31. Bxd3 {[%emt 0:04:17]} Bxb2 {[%emt 0:01:41]} 32. Rad1 {[%emt 0:00:10]} Rc6 {[%emt 0:06:24]} 33. Bxh6 {[%emt 0:01:40]} Rcxe6 {[%emt 0:01:13]} 34. Rxe6 {[%emt 0:00:33]} Rxe6 {[%emt 0:00:11]} 35. Rf1 {[%emt 0:00:04]} Bd4+ {[%emt 0:03:27]} 36. Kh2 {[%emt 0:00:23]} Bc5 {[%emt 0:09:06]} 37. Rf7 {[%emt 0:00:59]} Bc8 {[%emt 0:01:50]} 38. Rg7+ {[%emt 0:00:11]} Kh8 {[%emt 0:00:39]} 39. Rh7+ {[%emt 0:00:05]} Kg8 {[%emt 0:00:02]} 40. g7 {[%emt 0:00:28]} Rxh6 {[%emt 0:01:38]} 41. Rxh6 {[%emt 0:00:05]} Bb7 {[%emt 0:02:13]} 42. Rh8+ {[%emt 0:00:09]} Kxg7 {[%emt 0:00:20]} 43. Rh7+ {[%emt 0:00:05]} Kf8 {[%emt 0:00:10]} 44. Rxb7 {[%emt 0:00:06]} Bxa3 {[%emt 0:00:12]} 45. Ra7 {[%emt 0:00:09]} Bd6+ {[%emt 0:00:08]} 46. g3 {[%emt 0:00:07]} 1-0

[Event "AUT-ch U16-Open 2025"]
[Site "Fuerstenfeld"]
[Date "2025.04.15"]
[Round "4.2"]
[White "Prober, Raphael"]
[Black "Squasi, Ernesto"]
[Result "1/2-1/2"]
[Annotator "NA"]
[ECO "B41"]
[WhiteElo "2131"]
[BlackElo "1904"]
[PlyCount "72"]
[EventDate "2025.04.12"]
[EventType "swiss"]
[EventCountry "AUT"]
[SourceTitle "playchess.com"]
[Source "ChessBase"]
[SourceQuality "1"]
[TimeControl "5400+30"]

1. e4 {[%emt 0:00:03]} c5 {[%emt 0:00:04]} 2. Nf3 {[%emt 0:00:08]} e6 {[%emt 0:00:08]} 3. d4 {[%emt 0:00:07]} cxd4 {[%emt 0:00:08]} 4. Nxd4 {[%emt 0:00:05]} a6 {[%emt 0:00:08]} 5. c4 {[%emt 0:00:27]} Nf6 {[%emt 0:00:32]} 6. Nc3 {[%emt 0:00:08]} Qc7 {[%emt 0:00:12]} 7. a3 {[%emt 0:00:24]} d6 {[%emt 0:05:08]} 8. Be3 {[%emt 0:02:56]} Be7 {[%emt 0:01:08]} 9. f4 {[%emt 0:02:03]} Nbd7 {[%emt 0:24:46]} 10. Bd3 {[%emt 0:07:58]} b6 {[%emt 0:05:50]} 11. Rc1 {[%emt 0:09:10]} Bb7 {[%emt 0:03:57]} 12. b4 {[%emt 0:02:05]} Rc8 {[%emt 0:02:20]} 13. O-O {[%emt 0:02:30]} O-O {[%emt 0:00:50]} 14. g4 {[%emt 0:03:05]} Nb8 {[%emt 0:06:24]} 15. g5 {[%emt 0:01:31]} Nfd7 {[%emt 0:00:13]} 16. Qh5 {[%emt 0:04:23]} Rfe8 {[%emt 0:13:22]} 17. Rf3 {[%emt 0:05:15]} Nc6 {[%emt 0:08:07]} 18. Nxc6 {[%emt 0:10:30]} Qxc6 {[%emt 0:08:22]} 19. Nd5 {[%emt 0:04:41]} Nf8 {[%emt 0:07:34]} 20. Nxb6 {[%emt 0:01:47]} Rb8 {[%emt 0:00:30]} 21. b5 {[%emt 0:01:08]} Qc7 {[%emt 0:00:16]} 22. f5 {[%emt 0:00:29]} exf5 {[%emt 0:01:16]} 23. Nd5 {[%emt 0:00:17]} Qa5 {[%emt 0:03:16]} 24. exf5 {[%emt 0:00:38]} Bxd5 {[%emt 0:01:06]} 25. cxd5 {[%emt 0:00:17]} Qxa3 {[%emt 0:00:05]} 26. Rd1 {[%emt 0:06:03]} Qa4 {[%emt 0:02:25]} 27. Rdf1 {[%emt 0:00:39]} f6 {[%emt 0:02:54]} 28. g6 {[%emt 0:02:55]} axb5 {[%emt 0:01:05]} 29. gxh7+ {[%emt 0:00:31]} Nxh7 {[%emt 0:00:17]} 30. Rh3 {[%emt 0:01:08]} Ng5 {[%emt 0:00:55]} 31. Bxg5 {[%emt 0:08:29]} fxg5 {[%emt 0:00:06]} 32. f6 {[%emt 0:06:55]} Qd4+ {[%emt 0:00:12]} 33. Kh1 {[%emt 0:05:42]} Qxd5+ {[%emt 0:00:31]} 34. Kg1 {[%emt 0:00:06]} Qd4+ {[%emt 0:00:06]} 35. Kg2 {[%emt 0:00:29]} Qd5+ {[%emt 0:00:53]} 36. Kg1 {[%emt 0:02:05]} Qd4+ {[%emt 0:00:04]} 1/2-1/2

[Event "AUT-ch U16-Open 2025"]
[Site "Fuerstenfeld"]
[Date "2025.04.15"]
[Round "4.3"]
[White "Nicolussi, Hieronymus"]
[Black "Pausweg, Daniel"]
[Result "0-1"]
[Annotator "NA"]
[ECO "B12"]
[WhiteElo "1999"]
[BlackElo "2080"]
[PlyCount "64"]
[EventDate "2025.04.12"]
[EventType "swiss"]
[EventCountry "AUT"]
[SourceTitle "playchess.com"]
[Source "ChessBase"]
[SourceQuality "1"]
[TimeControl "5400+30"]

1. e4 {[%emt 0:00:04]} c6 {[%emt 0:00:09]} 2. d4 {[%emt 0:00:05]} d5 {[%emt 0:00:10]} 3. e5 {[%emt 0:00:10]} Bf5 {[%emt 0:00:25]} 4. Be3 {[%emt 1:32:11]} e6 {[%emt 0:00:28]} 5. Nd2 {[%emt 0:00:00]} Nd7 {[%emt 0:00:40]} 6. Ngf3 {[%emt 0:00:00]} h6 {[%emt 0:00:26]} 7. Be2 {[%emt 0:00:00]} c5 {[%emt 0:01:14]} 8. c4 {[%emt 0:00:00]} dxc4 {[%emt 0:02:34]} 9. Nxc4 {[%emt 0:00:00]} b5 {[%emt 0:01:24]} 10. Nd6+ {[%emt 0:00:00]} Bxd6 {[%emt 0:00:19]} 11. exd6 {[%emt 0:00:00]} c4 {[%emt 0:01:04]} 12. d5 {[%emt 0:00:00]} e5 {[%emt 0:03:13]} 13. a4 {[%emt 0:00:00]} a6 {[%emt 0:01:49]} 14. Bd2 {[%emt 0:00:00]} Nc5 {[%emt 0:15:54]} 15. axb5 {[%emt 0:00:00]} axb5 {[%emt 0:00:18]} 16. Rxa8 {[%emt 0:00:00]} Qxa8 {[%emt 0:00:18]} 17. Bb4 {[%emt 0:00:00]} Nd3+ {[%emt 0:01:06]} 18. Bxd3 {[%emt 0:00:00]} cxd3 {[%emt 0:00:58]} 19. Nxe5 {[%emt 0:00:00]} Qxd5 {[%emt 0:01:08]} 20. O-O {[%emt 0:00:00]} Nf6 {[%emt 0:00:58]} 21. Re1 {[%emt 0:00:00]} O-O {[%emt 0:00:35]} 22. Re3 {[%emt 0:00:00]} Re8 {[%emt 0:01:11]} 23. Nf3 {[%emt 0:00:00]} Rxe3 {[%emt 0:01:04]} 24. fxe3 {[%emt 0:00:00]} Ng4 {[%emt 0:03:48]} 25. Qd2 {[%emt 0:00:00]} Be4 {[%emt 0:04:18]} 26. Ne1 {[%emt 0:00:00]} Ne5 {[%emt 0:00:34]} 27. Qc3 {[%emt 0:00:00]} Nc6 {[%emt 0:04:37]} 28. Nf3 {[%emt 0:00:00]} Bxf3 {[%emt 0:03:59]} 29. gxf3 {[%emt 0:00:00]} Nxb4 {[%emt 0:01:42]} 30. Qc8+ {[%emt 0:00:00]} Kh7 {[%emt 0:00:14]} 31. d7 {[%emt 0:00:00]} d2 {[%emt 0:00:31]} 32. d8=Q {[%emt 0:14:00]} d1=Q+ {[%emt 0:00:30]} 0-1

[Event "AUT-ch U16-Open 2025"]
[Site "Fuerstenfeld"]
[Date "2025.04.15"]
[Round "4.4"]
[White "Ortner, Sebastian"]
[Black "Wu, Chenshan"]
[Result "1-0"]
[Annotator "NA"]
[ECO "D95"]
[WhiteElo "1925"]
[BlackElo "2011"]
[PlyCount "69"]
[EventDate "2025.04.12"]
[EventType "swiss"]
[EventCountry "AUT"]
[SourceTitle "playchess.com"]
[Source "ChessBase"]
[SourceQuality "1"]
[TimeControl "5400+30"]

1. d4 {[%emt 0:00:03]} Nf6 {[%emt 0:00:04]} 2. c4 {[%emt 0:00:03]} g6 {[%emt 0:00:06]} 3. Nc3 {[%emt 0:00:07]} d5 {[%emt 0:00:05]} 4. Nf3 {[%emt 0:00:17]} Bg7 {[%emt 0:00:06]} 5. e3 {[%emt 0:00:14]} O-O {[%emt 0:00:10]} 6. Qb3 {[%emt 0:00:38]} dxc4 {[%emt 0:08:48]} 7. Bxc4 {[%emt 0:00:13]} e6 {[%emt 0:10:42]} 8. O-O {[%emt 0:01:24]} c6 {[%emt 0:06:21]} 9. a4 {[%emt 0:08:40]} a5 {[%emt 0:01:38]} 10. e4 {[%emt 0:04:58]} Na6 {[%emt 0:16:31]} 11. Qc2 {[%emt 0:18:50]} Nb4 {[%emt 0:13:01]} 12. Qe2 {[%emt 0:00:35]} Qc7 {[%emt 0:06:43]} 13. Rd1 {[%emt 0:04:19]} Re8 {[%emt 0:01:27]} 14. h3 {[%emt 0:04:29]} b6 {[%emt 0:01:07]} 15. Be3 {[%emt 0:03:10]} Ba6 {[%emt 0:05:01]} 16. Rac1 {[%emt 0:02:24]} Bxc4 {[%emt 0:00:44]} 17. Qxc4 {[%emt 0:00:07]} Qb7 {[%emt 0:00:41]} 18. Qe2 {[%emt 0:14:47]} Rac8 {[%emt 0:03:45]} 19. e5 {[%emt 0:00:59]} Nfd5 {[%emt 0:01:31]} 20. Ne4 {[%emt 0:00:47]} Bf8 {[%emt 0:03:24]} 21. Bg5 {[%emt 0:04:02]} Na6 {[%emt 0:05:09]} 22. Nh2 {[%emt 0:05:33]} h6 {[%emt 0:04:37]} 23. Bf6 {[%emt 0:04:56]} c5 {[%emt 0:02:47]} 24. Qd2 {[%emt 0:04:55]} h5 {[%emt 0:04:02]} 25. g4 {[%emt 0:02:52]} h4 {[%emt 0:01:36]} 26. Qg5 {[%emt 0:01:05]} Be7 {[%emt 0:02:28]} 27. Qxh4 {[%emt 0:01:31]} Bxf6 {[%emt 0:00:49]} 28. exf6 {[%emt 0:03:00]} Nxf6 {[%emt 0:00:30]} 29. Nxf6+ {[%emt 0:00:11]} Kg7 {[%emt 0:00:21]} 30. Nxe8+ {[%emt 0:00:30]} Rxe8 {[%emt 0:00:11]} 31. dxc5 {[%emt 0:02:22]} Nxc5 {[%emt 0:00:13]} 32. Rd8 {[%emt 0:00:50]} Rxd8 {[%emt 0:00:36]} 33. Qxd8 {[%emt 0:00:04]} Qe4 {[%emt 0:00:51]} 34. Rd1 {[%emt 0:01:36]} Qe2 {[%emt 0:00:43]} 35. Qd2 {[%emt 0:00:45]} 1-0

[Event "AUT-ch U16-Open 2025"]
[Site "Fuerstenfeld"]
[Date "2025.04.15"]
[Round "4.5"]
[White "Reichhuetter, Richard"]
[Black "Haselsberger, Armin"]
[Result "1-0"]
[Annotator "NA"]
[ECO "D36"]
[WhiteElo "1916"]
[BlackElo "2004"]
[PlyCount "81"]
[EventDate "2025.04.12"]
[EventType "swiss"]
[EventCountry "AUT"]
[SourceTitle "playchess.com"]
[Source "ChessBase"]
[SourceQuality "1"]
[TimeControl "5400+30"]

1. d4 {[%emt 0:00:05]} Nf6 {[%emt 0:00:35]} 2. c4 {[%emt 0:00:45]} e6 {[%emt 0:00:41]} 3. Nc3 {[%emt 0:00:48]} d5 {[%emt 0:00:44]} 4. cxd5 {[%emt 0:02:32]} exd5 {[%emt 0:00:03]} 5. Bg5 {[%emt 0:00:11]} Be7 {[%emt 0:01:23]} 6. e3 {[%emt 0:02:36]} O-O {[%emt 0:00:49]} 7. Qc2 {[%emt 0:00:33]} c6 {[%emt 0:00:52]} 8. Bd3 {[%emt 0:00:06]} h6 {[%emt 0:00:49]} 9. Bh4 {[%emt 0:03:56]} Re8 {[%emt 0:01:16]} 10. Nf3 {[%emt 0:00:52]} Nbd7 {[%emt 0:01:24]} 11. O-O {[%emt 0:00:43]} Ne4 {[%emt 0:01:08]} 12. Bxe7 {[%emt 0:03:10]} Qxe7 {[%emt 1:26:46]} 13. b4 {[%emt 0:00:08]} Ndf6 {[%emt 0:00:00]} 14. b5 {[%emt 0:04:06]} c5 {[%emt 0:00:00]} 15. dxc5 {[%emt 0:00:35]} Nxc5 {[%emt 0:00:00]} 16. Be2 {[%emt 0:00:02]} Be6 {[%emt 0:00:00]} 17. Rac1 {[%emt 0:06:37]} Rac8 {[%emt 0:00:00]} 18. Nd4 {[%emt 0:14:25]} Red8 {[%emt 0:00:00]} 19. Rfd1 {[%emt 0:00:52]} Qc7 {[%emt 0:00:00]} 20. Na4 {[%emt 0:19:24]} Nfd7 {[%emt 0:00:00]} 21. Nxc5 {[%emt 0:18:09]} Qxc5 {[%emt 0:00:00]} 22. Qb2 {[%emt 0:00:16]} Qe7 {[%emt 0:00:00]} 23. Bf3 {[%emt 0:04:28]} Nb6 {[%emt 0:00:00]} 24. h3 {[%emt 0:04:13]} Rc4 {[%emt 0:00:00]} 25. Be2 {[%emt 0:02:27]} Rcc8 {[%emt 0:00:00]} 26. Bf3 {[%emt 0:00:26]} Qg5 {[%emt 0:00:00]} 27. Rxc8 {[%emt 0:02:03]} Rxc8 {[%emt 0:00:00]} 28. Nxe6 {[%emt 0:00:02]} fxe6 {[%emt 0:00:00]} 29. Bg4 {[%emt 0:00:01]} Kf7 {[%emt 0:03:02]} 30. Qa3 {[%emt 0:00:03]} Ra8 {[%emt 0:00:11]} 31. Qd6 {[%emt 0:00:30]} Qe7 {[%emt 0:00:18]} 32. Qf4+ {[%emt 0:04:02]} Kg8 {[%emt 0:01:35]} 33. Qe5 {[%emt 0:00:02]} Re8 {[%emt 0:00:19]} 34. Rc1 {[%emt 0:00:21]} Nc4 {[%emt 0:00:19]} 35. Qd4 {[%emt 0:00:19]} Qa3 {[%emt 0:00:51]} 36. Rc2 {[%emt 0:02:35]} Qa5 {[%emt 0:00:23]} 37. Bxe6+ {[%emt 0:00:27]} Rxe6 {[%emt 0:00:08]} 38. Qxd5 {[%emt 0:00:09]} Kf7 {[%emt 0:01:32]} 39. Rxc4 {[%emt 0:00:12]} Qe1+ {[%emt 0:00:14]} 40. Kh2 {[%emt 0:00:01]} Qxf2 {[%emt 0:00:28]} 41. Rf4+ {[%emt 0:07:48]} 1-0

[Event "AUT-ch U16-Open 2025"]
[Site "Fuerstenfeld"]
[Date "2025.04.15"]
[Round "4.6"]
[White "Gruenwald, Beat"]
[Black "Martinovic, David"]
[Result "0-1"]
[Annotator "NA"]
[ECO "C82"]
[WhiteElo "1727"]
[BlackElo "1968"]
[PlyCount "186"]
[EventDate "2025.04.12"]
[EventType "swiss"]
[EventCountry "AUT"]
[SourceTitle "playchess.com"]
[Source "ChessBase"]
[SourceQuality "1"]
[TimeControl "5400+30"]

1. e4 {[%emt 0:00:03]} e5 {[%emt 0:02:18]} 2. Nf3 {[%emt 0:00:09]} Nc6 {[%emt 0:00:06]} 3. Bb5 {[%emt 0:00:04]} a6 {[%emt 0:00:53]} 4. Ba4 {[%emt 0:00:08]} Nf6 {[%emt 0:01:29]} 5. O-O {[%emt 0:00:28]} Nxe4 {[%emt 0:00:32]} 6. d4 {[%emt 0:00:52]} b5 {[%emt 0:00:50]} 7. Bb3 {[%emt 0:00:16]} d5 {[%emt 0:00:13]} 8. dxe5 {[%emt 0:00:38]} Be6 {[%emt 0:00:28]} 9. c3 {[%emt 0:00:53]} Bc5 {[%emt 0:02:41]} 10. Nbd2 {[%emt 0:03:48]} O-O {[%emt 0:14:09]} 11. Nxe4 {[%emt 0:16:06]} dxe4 {[%emt 0:00:12]} 12. Ng5 {[%emt 0:00:15]} Bxb3 {[%emt 0:09:38]} 13. Qxb3 {[%emt 0:07:18]} e3 {[%emt 0:06:05]} 14. Ne6 {[%emt 0:17:27]} exf2+ {[%emt 0:10:45]} 15. Kh1 {[%emt 0:00:15]} fxe6 {[%emt 0:08:53]} 16. Qxe6+ {[%emt 0:00:07]} Kh8 {[%emt 0:00:29]} 17. Qxc6 {[%emt 0:00:10]} Qe7 {[%emt 0:02:13]} 18. b4 {[%emt 0:06:23]} Bb6 {[%emt 0:02:34]} 19. Qe4 {[%emt 0:00:25]} Rae8 {[%emt 0:05:52]} 20. Bf4 {[%emt 0:44:45]} Qh4 {[%emt 0:04:46]} 21. g3 {[%emt 0:00:00]} Qg4 {[%emt 0:00:32]} 22. Kg2 {[%emt 0:00:00]} g5 {[%emt 0:04:01]} 23. h3 {[%emt 0:00:00]} Qf5 {[%emt 0:00:38]} 24. Qxf5 {[%emt 0:00:00]} Rxf5 {[%emt 0:00:02]} 25. Bd2 {[%emt 0:00:00]} Rexe5 {[%emt 0:07:14]} 26. c4 {[%emt 0:00:00]} Bd4 {[%emt 0:00:47]} 27. Rac1 {[%emt 0:00:00]} Re2 {[%emt 0:03:42]} 28. Bc3 {[%emt 0:00:00]} Bxc3 {[%emt 0:01:08]} 29. Rxc3 {[%emt 0:00:00]} c6 {[%emt 0:07:14]} 30. cxb5 {[%emt 0:00:00]} cxb5 {[%emt 0:00:19]} 31. Rc8+ {[%emt 0:00:00]} Kg7 {[%emt 0:00:02]} 32. Rc7+ {[%emt 0:00:00]} Kf6 {[%emt 0:01:58]} 33. Rc6+ {[%emt 0:00:00]} Re6 {[%emt 0:01:13]} 34. Rc2 {[%emt 0:00:00]} Re3 {[%emt 0:02:16]} 35. Rfxf2 {[%emt 0:00:00]} Rxf2+ {[%emt 0:00:30]} 36. Kxf2 {[%emt 0:00:00]} Ra3 {[%emt 0:00:37]} 37. Rc6+ {[%emt 0:00:00]} Ke5 {[%emt 0:00:17]} 38. Rc5+ {[%emt 0:00:00]} Ke4 {[%emt 0:01:01]} 39. Rxg5 {[%emt 0:00:00]} Rxa2+ {[%emt 0:00:06]} 40. Kg1 {[%emt 0:00:00]} Kf3 {[%emt 0:00:39]} 41. Rg7 {[%emt 0:00:00]} Rb2 {[%emt 0:00:44]} 42. Rxh7 {[%emt 0:00:00]} Kxg3 {[%emt 0:00:44]} 43. Kf1 {[%emt 0:00:00]} Rxb4 {[%emt 0:00:27]} 44. Ke2 {[%emt 0:00:00]} a5 {[%emt 0:00:25]} 45. Kd3 {[%emt 0:00:00]} a4 {[%emt 0:00:41]} 46. Kc3 {[%emt 0:00:00]} Rc4+ {[%emt 0:00:29]} 47. Kb2 {[%emt 0:00:00]} Rh4 {[%emt 0:00:33]} 48. Rg7+ {[%emt 0:00:00]} Kxh3 {[%emt 0:00:11]} 49. Rg5 {[%emt 0:00:00]} Rb4+ {[%emt 0:00:30]} 50. Ka3 {[%emt 0:00:00]} Rb3+ {[%emt 0:00:24]} 51. Ka2 {[%emt 0:00:00]} Kh4 {[%emt 0:00:18]} 52. Rg8 {[%emt 0:00:00]} Rg3 {[%emt 0:00:50]} 53. Rb8 {[%emt 0:00:00]} Rg5 {[%emt 0:00:20]} 54. Ka3 {[%emt 0:00:24]} Kg4 {[%emt 0:00:10]} 55. Kb4 {[%emt 0:00:31]} Kf4 {[%emt 0:00:19]} 56. Rh8 {[%emt 0:00:49]} Rd5 {[%emt 0:01:08]} 57. Rh4+ {[%emt 0:00:27]} Ke5 {[%emt 0:00:20]} 58. Rh5+ {[%emt 0:00:04]} Kd6 {[%emt 0:00:10]} 59. Rh6+ {[%emt 0:00:09]} Kc7 {[%emt 0:00:17]} 60. Rg6 {[%emt 0:00:45]} Rd6 {[%emt 0:01:07]} 61. Rg5 {[%emt 0:00:32]} Rb6 {[%emt 0:00:21]} 62. Rg7+ {[%emt 0:00:30]} Kc6 {[%emt 0:00:34]} 63. Rh7 {[%emt 0:00:50]} Rb7 {[%emt 0:00:19]} 64. Rh5 {[%emt 0:01:00]} Kc7 {[%emt 0:00:32]} 65. Rh6 {[%emt 0:00:13]} Rb6 {[%emt 0:00:41]} 66. Rh7+ {[%emt 0:00:15]} Kb8 {[%emt 0:00:11]} 67. Rh8+ {[%emt 0:00:40]} Ka7 {[%emt 0:00:15]} 68. Rh7+ {[%emt 0:00:20]} Ka6 {[%emt 0:00:32]} 69. Rh8 {[%emt 0:00:08]} Rc6 {[%emt 0:01:03]} 70. Ra8+ {[%emt 0:00:23]} Kb7 {[%emt 0:00:13]} 71. Rh8 {[%emt 0:00:14]} Rb6 {[%emt 0:00:49]} 72. Rh7+ {[%emt 0:00:13]} Ka8 {[%emt 0:00:53]} 73. Rh8+ {[%emt 0:00:32]} Ka7 {[%emt 0:00:04]} 74. Rh7+ {[%emt 0:00:12]} Rb7 {[%emt 0:00:06]} 75. Rh6 {[%emt 0:00:08]} Kb8 {[%emt 0:00:37]} 76. Rh8+ {[%emt 0:00:45]} Kc7 {[%emt 0:00:08]} 77. Rh7+ {[%emt 0:00:22]} Kc6 {[%emt 0:01:24]} 78. Rh6+ {[%emt 0:00:10]} Kd5 {[%emt 0:00:14]} 79. Rh5+ {[%emt 0:00:12]} Ke4 {[%emt 0:00:10]} 80. Rh4+ {[%emt 0:00:15]} Kf3 {[%emt 0:00:31]} 81. Rh3+ {[%emt 0:00:40]} Kg4 {[%emt 0:00:20]} 82. Rd3 {[%emt 0:00:31]} Kf4 {[%emt 0:00:43]} 83. Rh3 {[%emt 0:00:25]} Kf5 {[%emt 0:00:39]} 84. Rh5+ {[%emt 0:00:12]} Kg4 {[%emt 0:00:07]} 85. Rd5 {[%emt 0:00:13]} Kf4 {[%emt 0:01:06]} 86. Rh5 {[%emt 0:00:14]} Ra7 {[%emt 0:00:12]} 87. Kxb5 {[%emt 0:01:17]} a3 {[%emt 0:00:39]} 88. Rh1 {[%emt 0:00:01]} Ke3 {[%emt 0:00:53]} 89. Kb4 {[%emt 0:01:19]} a2 {[%emt 0:00:17]} 90. Ra1 {[%emt 0:00:20]} Kd3 {[%emt 0:00:31]} 91. Kb3 {[%emt 0:00:50]} Rb7+ {[%emt 0:00:30]} 92. Ka4 {[%emt 0:02:39]} Kc3 {[%emt 0:00:27]} 93. Ka5 {[%emt 0:00:29]} Kb2 {[%emt 0:00:17]} 0-1

[Event "AUT-ch U16-Open 2025"]
[Site "Fuerstenfeld"]
[Date "2025.04.15"]
[Round "4.7"]
[White "Chen, Chicheng Leon"]
[Black "Rella, Mario"]
[Result "1-0"]
[Annotator "RC"]
[ECO "B23"]
[WhiteElo "2021"]
[BlackElo "1677"]
[PlyCount "53"]
[EventDate "2025.04.12"]
[EventType "swiss"]
[EventCountry "AUT"]
[SourceTitle "playchess.com"]
[Source "ChessBase"]
[SourceQuality "1"]
[TimeControl "5400+30"]

1. e4 {[%emt 0:00:01]} c5 {[%emt 0:00:09]} 2. Nc3 {[%emt 0:00:12]} d6 {[%emt 0:00:08]} 3. d4 {[%emt 0:00:26]} cxd4 {[%emt 0:00:13]} 4. Qxd4 {[%emt 0:00:06]} Nc6 {[%emt 0:01:58]} 5. Qd2 {[%emt 0:00:06]} Nf6 {[%emt 0:00:30]} 6. b3 {[%emt 0:00:06]} g6 {[%emt 0:03:17]} 7. Bb2 {[%emt 0:00:05]} Bg7 {[%emt 0:00:05]} 8. O-O-O {[%emt 0:00:05]} O-O {[%emt 0:02:12]} 9. f3 {[%emt 0:01:35]} Be6 {[%emt 0:01:10]} 10. Kb1 {[%emt 0:00:33]} a6 {[%emt 0:05:19]} 11. g4 {[%emt 0:02:27]} b5 {[%emt 0:01:47]} 12. h4 {[%emt 0:01:53]} b4 {[%emt 0:04:24]} 13. Na4 {[%emt 0:02:14]} a5 {[%emt 0:00:35]} 14. h5 {[%emt 0:02:44]} Nxe4 {[%emt 0:23:08]} 15. fxe4 {[%emt 0:01:40]} Bxb2 {[%emt 0:01:20]} 16. Kxb2 {[%emt 0:03:13]} Bxg4 {[%emt 0:00:14]} 17. Be2 {[%emt 0:02:02]} Bxe2 {[%emt 0:00:40]} 18. Nxe2 {[%emt 0:00:07]} Ne5 {[%emt 0:00:12]} 19. Qh6 {[%emt 0:04:58]} Ng4 {[%emt 0:00:52]} 20. Qf4 {[%emt 0:01:11]} Ne5 {[%emt 0:00:56]} 21. Rdg1 {[%emt 0:02:52]} f6 {[%emt 0:02:47]} 22. hxg6 {[%emt 0:00:39]} Nxg6 {[%emt 0:00:22]} 23. Qh6 {[%emt 0:00:59]} Kf7 {[%emt 0:00:35]} 24. Qxh7+ {[%emt 0:00:37]} Ke8 {[%emt 0:00:19]} 25. Qxg6+ {[%emt 0:00:05]} Kd7 {[%emt 0:00:08]} 26. Qf5+ {[%emt 0:00:08]} Kc7 {[%emt 0:00:15]} 27. Nd4 {[%emt 0:00:08]} 1-0

[Event "AUT-ch U16-Open 2025"]
[Site "Fuerstenfeld"]
[Date "2025.04.15"]
[Round "4.8"]
[White "Fuertler, Oliver"]
[Black "Guba, Viktor"]
[Result "0-1"]
[Annotator "NA"]
[ECO "A45"]
[WhiteElo "2008"]
[BlackElo "1931"]
[PlyCount "100"]
[EventDate "2025.04.12"]
[EventType "swiss"]
[EventCountry "AUT"]
[SourceTitle "playchess.com"]
[Source "ChessBase"]
[SourceQuality "1"]
[TimeControl "5400+30"]

1. d4 {[%emt 0:00:03]} Nf6 {[%emt 0:00:17]} 2. Bg5 {[%emt 0:00:11]} e6 {[%emt 0:01:31]} 3. e4 {[%emt 0:00:07]} Be7 {[%emt 0:00:46]} 4. e5 {[%emt 0:00:07]} Nd5 {[%emt 0:00:24]} 5. Bxe7 {[%emt 0:00:07]} Nxe7 {[%emt 0:00:27]} 6. Qg4 {[%emt 0:01:24]} g6 {[%emt 0:02:01]} 7. Nd2 {[%emt 0:06:01]} d5 {[%emt 0:03:07]} 8. c4 {[%emt 0:04:43]} Nbc6 {[%emt 0:03:14]} 9. O-O-O {[%emt 0:04:26]} Nf5 {[%emt 0:04:01]} 10. Ngf3 {[%emt 0:01:26]} Bd7 {[%emt 0:08:17]} 11. Qf4 {[%emt 0:03:48]} Ncxd4 {[%emt 0:06:45]} 12. g4 {[%emt 0:03:28]} Nxf3 {[%emt 0:01:02]} 13. Nxf3 {[%emt 0:00:29]} Nh4 {[%emt 0:03:44]} 14. cxd5 {[%emt 0:02:29]} exd5 {[%emt 0:01:53]} 15. Ng5 {[%emt 0:12:45]} Qe7 {[%emt 0:01:10]} 16. Rxd5 {[%emt 0:00:39]} O-O-O {[%emt 0:01:49]} 17. Bh3 {[%emt 0:05:10]} Be6 {[%emt 0:04:45]} 18. Rxd8+ {[%emt 0:04:59]} Rxd8 {[%emt 0:00:09]} 19. Kb1 {[%emt 0:14:18]} Qd7 {[%emt 0:02:57]} 20. Nxe6 {[%emt 0:02:37]} Qd3+ {[%emt 0:00:05]} 21. Kc1 {[%emt 0:09:54]} fxe6 {[%emt 0:00:11]} 22. Qe3 {[%emt 0:00:57]} Qc4+ {[%emt 0:06:45]} 23. Kb1 {[%emt 0:03:52]} Rd3 {[%emt 0:00:05]} 24. Qh6 {[%emt 0:00:24]} Qe4 {[%emt 0:00:06]} 25. Rc1 {[%emt 0:01:36]} Rxh3+ {[%emt 0:04:12]} 26. Ka1 {[%emt 0:00:15]} Qf3 {[%emt 0:07:58]} 27. Qxh7 {[%emt 0:01:11]} c6 {[%emt 0:00:58]} 28. Qg8+ {[%emt 0:00:49]} Kc7 {[%emt 0:00:25]} 29. Qxe6 {[%emt 0:01:16]} Qf8 {[%emt 0:00:08]} 30. Rd1 {[%emt 0:00:58]} Rxh2 {[%emt 0:09:39]} 31. Qd7+ {[%emt 0:00:38]} Kb6 {[%emt 0:00:40]} 32. a4 {[%emt 0:05:00]} Qb4 {[%emt 0:04:32]} 33. Qd8+ {[%emt 0:00:38]} Ka6 {[%emt 0:00:32]} 34. Qd3+ {[%emt 0:01:06]} Ka5 {[%emt 0:02:42]} 35. Qd8+ {[%emt 0:00:24]} b6 {[%emt 0:00:39]} 36. Qd7 {[%emt 0:00:13]} Qxa4+ {[%emt 0:00:35]} 37. Kb1 {[%emt 0:00:07]} Qe4+ {[%emt 0:01:00]} 38. Ka2 {[%emt 0:00:24]} Rxf2 {[%emt 0:00:29]} 39. Rd4 {[%emt 0:00:51]} Qc2 {[%emt 0:01:49]} 40. Qxa7+ {[%emt 0:00:19]} Kb5 {[%emt 0:00:03]} 41. Qa3 {[%emt 0:02:32]} c5 {[%emt 0:00:23]} 42. Rd6 {[%emt 0:00:36]} Qc4+ {[%emt 0:00:20]} 43. Qb3+ {[%emt 0:00:11]} Qxb3+ {[%emt 0:00:08]} 44. Kxb3 {[%emt 0:00:06]} Re2 {[%emt 0:00:16]} 45. e6 {[%emt 0:00:18]} g5 {[%emt 0:00:47]} 46. Rd5 {[%emt 0:00:09]} Nf3 {[%emt 0:00:05]} 47. Kc3 {[%emt 0:00:28]} Rxe6 {[%emt 0:00:34]} 48. Rd3 {[%emt 0:00:12]} Nd4 {[%emt 0:00:24]} 49. b4 {[%emt 0:00:20]} Re4 {[%emt 0:00:22]} 50. bxc5 {[%emt 0:00:15]} bxc5 {[%emt 0:00:05]} 0-1